fUST/lending_fUST_20240716
["ID","MTS","AMOUNT","RATE_DAILY","PERIOD"]
[332277389,1721107840075,-500.0,0.00021917,2]
[332277391,1721107840085,-500.0,0.00021917,2]
[332277393,1721107840096,-500.0,0.00021917,2]
[332277395,1721107840107,-500.0,0.00021917,2]
[332277397,1721107840116,-500.0,0.00021917,2]
[332277399,1721107840127,-167.35110788,0.00021917,2]
[332277401,1721107840136,-500.0,0.00021917,2]
[332277402,1721107840149,-500.0,0.00021917,2]
[332277403,1721107840158,-500.0,0.00021917,4]
[332277404,1721107840168,-500.0,0.00021917,2]
[332277405,1721107840177,-500.0,0.00021917,2]
[332277406,1721107840187,-500.0,0.00021917,2]
[332277407,1721107840196,-500.0,0.00021917,2]
[332277408,1721107840205,-500.0,0.00021917,2]
[332277409,1721107840216,-322.93562253,0.00021917,2]
[332277410,1721107840225,-500.0,0.00021917,2]
[332277411,1721107840234,-500.0,0.00021917,2]
[332277412,1721107840244,-500.0,0.00021917,2]
[332277413,1721107840253,-500.0,0.00021917,2]
[332277414,1721107840262,-623.27,0.00021917,2]
[332277415,1721107840271,-500.0,0.00021917,2]
[332277416,1721107840281,-642.1778972,0.00021917,2]
[332277417,1721107840290,-500.0,0.00021917,2]
[332277418,1721107840299,-500.0,0.00021917,2]
[332277419,1721107840309,-570.4,0.00021917,2]
[332277421,1721107840319,-500.0,0.00021917,2]
[332277423,1721107840328,-1195.51,0.00021917,2]
[332277425,1721107840339,-500.0,0.00021917,2]
[332277427,1721107840350,-500.0,0.00021917,2]
[332277429,1721107840359,-500.0,0.00021917,2]
[332277431,1721107840368,-500.0,0.00021917,2]
[332277433,1721107840378,-500.0,0.00021917,2]
[332277435,1721107840387,-500.0,0.00021917,2]
[332277437,1721107840401,-500.0,0.00021917,2]
[332277439,1721107840411,-678.08,0.00021917,2]
[332277441,1721107840421,-500.0,0.00021917,2]
[332277443,1721107840430,-1019.31,0.00021917,2]
[332277445,1721107840439,-500.0,0.00021917,2]
[332277447,1721107840450,-500.0,0.00021917,2]
[332277449,1721107840459,-500.0,0.00021917,2]
[332277451,1721107840468,-500.0,0.00021917,2]
[332277463,1721107840570,-3201.11,0.00021917,2]
[332277466,1721107840580,-500.0,0.00021917,2]
[332277468,1721107840590,-500.0,0.00021917,2]
[332277470,1721107840599,-500.0,0.00021917,2]
[332277471,1721107840608,-500.0,0.00021917,2]
[332277473,1721107840617,-500.0,0.00021917,2]
[332277475,1721107840626,-500.0,0.00021917,2]
[332277478,1721107840636,-500.0,0.00021917,2]
[332277480,1721107840648,-500.0,0.00021917,2]
[332277481,1721107840657,-500.0,0.00021917,2]
[332277483,1721107840667,-543.25,0.00021917,2]
[332277486,1721107840676,-442.04743793,0.00021917,2]
[332277487,1721107840688,-500.0,0.00021917,2]
[332277490,1721107840698,-500.0,0.00021917,2]
[332277492,1721107840706,-500.0,0.00021917,2]
[332277493,1721107840715,-508.24808419,0.00021917,2]
[332277495,1721107840726,-513.52298505,0.00021917,2]
[332277497,1721107840735,-500.0,0.00021917,2]
[332277499,1721107840744,-500.0,0.00021917,2]
[332277501,1721107840753,-500.0,0.00021917,2]
[332277503,1721107840764,-500.0,0.00021917,2]
[332277505,1721107840774,-500.0,0.00021917,2]
[332277507,1721107840783,-500.0,0.00021917,2]
[332277509,1721107840793,-816.75,0.00021917,2]
[332277511,1721107840803,-731.2,0.00021917,2]
[332277513,1721107840813,-506.9600944,0.00021917,2]
[332277516,1721107840823,-500.0,0.00021917,2]
[332277518,1721107840832,-500.0,0.00021917,2]
[332277519,1721107840842,-507.21336958,0.00021917,2]
[332277521,1721107840851,-509.89,0.00021917,2]
[332277523,1721107840861,-500.0,0.00021917,2]
[332277525,1721107840870,-500.0,0.00021917,2]
[332277528,1721107840882,-176.50376785,0.00021917,2]
[332277530,1721107840892,-500.0,0.00021917,2]
[332277532,1721107840904,-702.53,0.00021917,2]
[332277534,1721107840914,-507.93209765,0.00021917,2]
[332277536,1721107840923,-500.0,0.00021917,2]
[332277538,1721107840932,-500.0,0.00021917,2]
[332277540,1721107840942,-508.5621516,0.00021917,2]
[332277542,1721107840951,-505.33,0.00021917,2]
[332277544,1721107840961,-500.0,0.00021917,2]
[332277546,1721107840970,-500.0,0.00021917,2]
[332277548,1721107840981,-513.96065688,0.00021917,2]
[332277550,1721107840990,-502.66719403,0.00021917,2]
[332277552,1721107841000,-500.0,0.00021917,2]
[332277554,1721107841010,-13769.61,0.00021917,2]
[332277556,1721107841020,-541.17910634,0.00021917,2]
[332277558,1721107841029,-500.0,0.00021917,2]
[332277560,1721107841039,-500.0,0.00021917,2]
[332277562,1721107841048,-500.0,0.00021917,2]
[332277564,1721107841059,-2879.72374053,0.00021917,2]
[332278859,1721108213123,793.43978523,0.00016255,2]
[332278860,1721108241370,4396.47525377,0.00018,2]
[332278864,1721108388351,1803.79663662,0.00018,2]
[332278866,1721108476026,939.49381053,0.00016255,2]
[332278867,1721108480358,5046.06348021,0.00016255,2]
[332278868,1721108547017,439.06117031,0.00014999,2]
[332278869,1721108547044,368.84315584,0.00014999,2]
[332278870,1721108552550,598.24214223,0.00014999,2]
[332278873,1721108602597,288.63496276,0.00014999,2]
[332278874,1721108603616,242.11112336,0.00014999,2]
[332278875,1721108604632,155.04442949,0.00014999,2]
[332278876,1721108611675,195.83024215,0.00014999,2]
[332278878,1721108629046,155.94823623,0.00014999,2]
[332278889,1721108663417,155.58214602,0.00014999,2]
[332278893,1721108699034,342.45422309,0.00014999,2]
[332278909,1721108918545,-300.0,0.00016254,2]
[332278910,1721108918578,-147.84239372,0.00016254,2]
[332278911,1721108918623,-152.15760628,0.00016254,2]
[332278912,1721108918658,-73.13519099,0.00016255,2]
[332278913,1721108918704,-447.84239372,0.00016255,2]
[332278915,1721108943444,-300.0,0.00016254,2]
[332278916,1721108943474,-170.26194541,0.00016255,2]
[332278917,1721108943509,-470.26194541,0.00016255,2]
[332278918,1721108965154,-6739.80664785,0.00016255,2]
[332279002,1721109038578,-300.0,0.00016254,2]
[332279004,1721109038588,-23837.87587587,0.00016255,2]
[332279006,1721109038598,-1163.44410804,0.00017779,2]
[332279008,1721109038607,-420.0,0.00017879,2]
[332279010,1721109038617,-191.89068286,0.00018798,2]
[332279012,1721109038626,-150.0,0.000189,2]
[332279014,1721109038636,-24219.0435757,0.00019617,2]
[332279016,1721109038645,-6085.6332644,0.0001962,2]
[332279018,1721109038654,-250.0,0.00019635,2]
[332279020,1721109038663,-3760.4868156,0.00019662,2]
[332279022,1721109038672,-587.0,0.00019667,2]
[332279024,1721109038683,-286.809272,0.00019721,2]
[332279025,1721109038692,-428.71334484,0.0002,2]
[332279027,1721109038701,-1163.44410802,0.00020225,2]
[332279029,1721109038710,-250.0000073,0.000204,2]
[332279031,1721109038720,-188.05885717,0.00020545,2]
[332279033,1721109038730,-170.08924274,0.00021,2]
[332279035,1721109038739,-285.0,0.00021095,2]
[332279037,1721109038750,-423.14589939,0.00021095,2]
[332279038,1721109038762,-270.92599341,0.00021095,2]
[332279039,1721109038771,-266.61190487,0.00021095,2]
[332279040,1721109038781,-441.14037506,0.00021095,2]
[332279041,1721109038791,-408.52398367,0.00021095,2]
[332279043,1721109038801,-388.702074,0.00021096,2]
[332279045,1721109038811,-170.750268,0.00021096,2]
[332279047,1721109038820,-240.2,0.00021409,2]
[332279049,1721109038830,-4661.96319962,0.00021488,2]
[332279050,1721109038839,-345.289672,0.00021552,2]
[332279052,1721109038849,-823.0,0.00021634,2]
[332279054,1721109038858,-345.289673,0.0002169,2]
[332279056,1721109038868,-233.0401877,0.00021697,2]
[332279058,1721109038880,-240.2,0.00021726,2]
[332279060,1721109038891,-150.0,0.00021726,2]
[332279074,1721109039018,-4661.96319962,0.00021733,2]
[332279076,1721109039028,-3418.71901558,0.000218,2]
[332279078,1721109039038,-3418.71901558,0.00021804,2]
[332279080,1721109039048,-3418.71901558,0.00021809,2]
[332279082,1721109039057,-3418.71901558,0.00021813,2]
[332279084,1721109039068,-2000.0,0.00021817,2]
[332279086,1721109039078,-48406.19319073,0.00021817,3]
[332279088,1721109039092,-3418.71901558,0.00021817,2]
[332279090,1721109039101,-150.112233,0.000219,5]
[332279092,1721109039111,-3000.0,0.000219,2]
[332279094,1721109039120,-461.84701295,0.00021906,2]
[332279096,1721109039131,-603.52407323,0.00021906,2]
[332279098,1721109039141,-120825.232736,0.00021907,3]
[332279100,1721109039151,-3000.0,0.0002191,2]
[332279102,1721109039161,-5381.87547879,0.0002191,3]
[332279221,1721109040688,-362.79592946,0.0002191,3]
[332279883,1721109046736,-333.3986771,0.0002191,3]
[332279885,1721109046748,-5758.94734459,0.0002191,3]
[332279887,1721109046761,-636.0,0.0002191,3]
[332279890,1721109046776,-7664.52135936,0.0002191,3]
[332279892,1721109046785,-500.0,0.00021916,2]
[332279894,1721109046795,-391.51544851,0.00021916,2]
[332279896,1721109046805,-293.96319013,0.00021916,2]
[332287076,1721109272872,456.35836971,0.00014999,2]
[332287077,1721109300045,155.3810316,0.00014999,2]
[332287078,1721109315767,154.68290005,0.00014999,2]
[332287081,1721109470764,154.68290005,0.00014999,2]
[332287082,1721109485762,154.68290005,0.00014999,2]
[332287089,1721110012148,-940.06845976,0.00019,2]
[332287090,1721110012170,-152.99736946,0.00019807,2]
[332287091,1721110012191,-857.16,0.0002,2]
[332287092,1721110012214,-1000.0,0.0002,20]
[332287093,1721110012236,-4096.02234816,0.00020171,2]
[332287100,1721110128002,6739.80664785,0.00014998,2]
[332287652,1721110241115,-152.620996,0.000189,2]
[332287655,1721110241125,-1000.0,0.0002,20]
[332287657,1721110241137,-300.0,0.0002017,2]
[332287659,1721110241147,-300.0,0.0002017,2]
[332287661,1721110241156,-764.86209876,0.00020171,2]
[332287663,1721110241165,-9730.16101514,0.00020171,2]
[332287665,1721110241174,-387.119543,0.00020268,2]
[332287666,1721110241183,-167.591787,0.00020423,2]
[332287668,1721110241192,-621.26300733,0.00020425,2]
[332287670,1721110241201,-1000.0,0.00021,21]
[332287672,1721110241210,-270.92599341,0.00021095,2]
[332287674,1721110241219,-369.26697,0.00021096,2]
[332287677,1721110241230,-170.750268,0.00021096,2]
[332287680,1721110241239,-200.2,0.00021243,2]
[332287682,1721110241249,-200.2,0.00021429,2]
[332287684,1721110241259,-620.06315037,0.00021446,2]
[332287686,1721110241269,-200.2,0.00021615,2]
[332287689,1721110241279,-1416.225,0.00021755,2]
[332287691,1721110241291,-200.2,0.00021801,2]
[332287693,1721110241300,-872.58308105,0.0002181,2]
[332287695,1721110241311,-1000.59433233,0.0002185,6]
[332287697,1721110241321,-151.26617639,0.00021872,2]
[332287699,1721110241332,-150.112233,0.000219,5]
[332287701,1721110241342,-2146.91349018,0.000219,2]
[332287979,1721110243882,-451.89581377,0.000219,2]
[332287986,1721110243935,-401.19069605,0.000219,2]
[332287988,1721110243946,-374.0,0.000219,2]
[332287990,1721110243956,-813.926407,0.000219,2]
[332287992,1721110243966,-330.77010821,0.00021907,3]
[332287996,1721110243995,-2140.68233686,0.00021907,3]
[332288277,1721110246721,-12677.57898158,0.00021907,3]
[332289869,1721111433464,-150.0,0.00019807,2]
[332289871,1721111433474,-3111.94300396,0.0002,2]
[332289873,1721111433483,-1841.7351946,0.0002051,2]
[332289875,1721111433493,-193.559772,0.00020546,2]
[332289877,1721111433502,-163.8907146,0.00020611,2]
[332289879,1721111433512,-902.02457898,0.00021,21]
[332289914,1721111437886,-97.97542102,0.00021,21]
[332289916,1721111437896,-158.93725886,0.00021095,2]
[332289921,1721111437939,-111.98873455,0.00021095,2]
[332289922,1721111437948,-350.803621,0.00021096,2]
[332289924,1721111437961,-170.750268,0.00021096,2]
[332289926,1721111437971,-151.0,0.00021646,2]
[332289928,1721111437983,-300.0,0.00021797,2]
[332289930,1721111437994,-300.0,0.00021797,2]
[332289932,1721111438003,-12101.29780866,0.00021798,2]
[332290543,1721111443703,-1873.55919696,0.00021798,2]
[332290546,1721111443713,-267.1231399,0.00021807,2]
[332290556,1721111443795,-496.38705601,0.00021807,2]
[332290559,1721111443805,-151.0,0.00021829,2]
[332290561,1721111443814,-54.40485699,0.00021893,2]
[332291836,1721111584840,4219.06118968,0.0002185,30]
[332291838,1721111801669,678.99585961,0.00014999,2]
[332291839,1721111981679,678.99585961,0.00014999,2]
[332291840,1721112144730,678.99585961,0.00014999,2]
[332291857,1721112317879,478.99719647,0.00014999,2]
[332291858,1721112327687,678.99585961,0.00014999,2]
[332291859,1721112344713,228.07001066,0.00014999,2]
[332291860,1721112388306,336.12696121,0.00015,2]
[332291862,1721112500709,678.99585961,0.00014999,2]
[332291863,1721112512973,400.02604267,0.00014999,2]
[332291878,1721112577132,-473.60526471,0.0001818,2]
[332291879,1721112577211,-205.3905949,0.0001818,2]
[332291949,1721112638456,-150.0,0.0001975,2]
[332291951,1721112638466,-107.15644721,0.00020527,2]
[332292470,1721112643267,-86.40332479,0.00020527,2]
[332292472,1721112643278,-111.71138521,0.00021,21]
[332292481,1721112643375,-888.28861479,0.00021,21]
[332292482,1721112643384,-270.92599341,0.00021095,2]
[332292483,1721112643394,-384.488519,0.00021096,2]
[332292485,1721112643404,-151.50895514,0.00021192,2]
[332292487,1721112643414,-620.00315751,0.00021392,2]
[332292489,1721112643423,-153.0,0.00021574,2]
[332292491,1721112643432,-153.0,0.00021574,2]
[332292493,1721112643442,-153.0,0.00021574,2]
[332292495,1721112643452,-153.6209046,0.00021574,2]
[332292497,1721112643461,-153.0,0.00021574,2]
[332292499,1721112643471,-153.0,0.00021574,2]
[332292501,1721112643480,-153.0,0.000216,2]
[332292504,1721112643491,-153.0,0.000216,2]
[332292506,1721112643500,-151.0,0.000218,2]
[332292508,1721112643509,-701.4618139,0.00021808,2]
[332292510,1721112643520,-300.0,0.00021841,2]
[332292512,1721112643529,-764.29708907,0.0002185,2]
[332292514,1721112643538,-534.87674077,0.00021871,2]
[332292516,1721112643550,-300.0,0.00021891,2]
[332292518,1721112643559,-2906.37343762,0.00021893,2]
[332292520,1721112643569,-150.112233,0.000219,2]
[332292522,1721112643578,-3000.0,0.000219,2]
[332292524,1721112643587,-500.0,0.00021906,2]
[332292526,1721112643597,-6278.81343322,0.00021907,5]
[332292528,1721112643607,-6081.57017184,0.00021907,3]
[332292530,1721112643624,-937.07941763,0.00021907,3]
[332294496,1721112906717,491.1474761,0.00014999,2]
[332294497,1721112906747,187.84838351,0.00014999,2]
[332294503,1721113199244,51.07312209,0.00014999,2]
[332294504,1721113199274,323.311652,0.00014999,2]
[332294505,1721113199303,304.61108552,0.00014999,2]
[332294506,1721113210247,18.70056648,0.00014999,2]
[332294507,1721113210278,323.311652,0.00014999,2]
[332294508,1721113210320,336.98364113,0.00014999,2]
[332294522,1721113401264,678.99585961,0.00014999,2]
[332294524,1721113431264,678.99585961,0.00014999,2]
[332294525,1721113596273,678.99585961,0.00014999,2]
[332294537,1721113774155,-678.99585961,0.00016255,2]
[332294538,1721113774180,-474.00150985,0.00016255,2]
[332294593,1721113832284,-649.86561622,0.00019703,2]
[332294595,1721113832293,-270.92599341,0.00021095,2]
[332294597,1721113832303,-365.264093,0.00021096,2]
[332294599,1721113832312,-499.279,0.00021354,2]
[332294601,1721113832322,-213.7,0.0002147,2]
[332294602,1721113832332,-1407.0,0.00021479,2]
[332294604,1721113832342,-213.7,0.00021635,2]
[332294607,1721113832352,-300.47345141,0.00021676,2]
[332294609,1721113832361,-153.0,0.000217,2]
[332294610,1721113832370,-300.0,0.00021799,2]
[332294612,1721113832380,-1931.4383158,0.000218,2]
[332294615,1721113832396,-1024.56815238,0.000218,2]
[332294617,1721113832408,-43.99353182,0.000218,2]
[332294620,1721113832417,-213.7,0.000218,2]
[332294622,1721113832426,-153.0,0.000218,2]
[332294624,1721113832436,-1107.78819755,0.0002181,2]
[332294626,1721113832447,-255.0,0.0002181,2]
[332294979,1721113839033,-316.38277998,0.0002181,2]
[332294981,1721113839045,-1320.82902247,0.0002181,2]
[332294983,1721113839055,-769.82482617,0.00021816,2]
[332294985,1721113839064,-769.82482614,0.00021816,2]
[332294987,1721113839074,-769.82482614,0.00021817,2]
[332294990,1721113839084,-769.82482614,0.00021817,2]
[332294992,1721113839094,-769.82482614,0.00021817,2]
[332294993,1721113839103,-3000.0,0.0002182,2]
[332294996,1721113839113,-3000.0,0.0002183,2]
[332294998,1721113839123,-3000.0,0.0002184,2]
[332295000,1721113839132,-151.0,0.0002184,2]
[332295001,1721113839141,-151.0,0.0002184,2]
[332295003,1721113839150,-151.0,0.0002184,2]
[332295005,1721113839160,-151.0,0.0002184,2]
[332295019,1721113839291,-151.0,0.0002184,2]
[332295021,1721113839301,-151.0,0.0002184,2]
[332295023,1721113839311,-168.78126,0.0002184,2]
[332295025,1721113839320,-151.0,0.0002184,2]
[332295027,1721113839329,-151.0,0.0002184,2]
[332295029,1721113839339,-151.0,0.0002184,2]
[332295031,1721113839348,-151.0,0.0002184,2]
[332295033,1721113839358,-151.0,0.0002184,2]
[332295035,1721113839367,-151.0,0.0002184,2]
[332295037,1721113839377,-151.0,0.0002184,2]
[332295040,1721113839387,-194.524829,0.0002184,2]
[332295042,1721113839397,-194.524829,0.0002184,2]
[332295044,1721113839407,-151.0,0.0002184,2]
[332295045,1721113839417,-151.0,0.0002184,2]
[332295047,1721113839427,-151.0,0.0002184,2]
[332295050,1721113839436,-151.0,0.0002184,2]
[332295052,1721113839446,-151.0,0.0002184,2]
[332295054,1721113839455,-195.231241,0.0002184,2]
[332295056,1721113839466,-195.231241,0.0002184,2]
[332295058,1721113839476,-151.0,0.0002184,2]
[332295060,1721113839486,-151.0,0.0002184,2]
[332295061,1721113839495,-3139.40671661,0.0002185,5]
[332295064,1721113839505,-416.30348048,0.0002185,2]
[332295066,1721113839517,-2583.69651952,0.0002185,2]
[332295068,1721113839527,-151.807023,0.0002185,2]
[332295070,1721113839536,-153.913507,0.0002185,2]
[332295072,1721113839546,-243.109987,0.0002185,2]
[332295074,1721113839556,-151.0,0.0002185,2]
[332295076,1721113839565,-243.109987,0.0002185,2]
[332295078,1721113839575,-151.0,0.0002185,2]
[332295080,1721113839584,-151.0,0.0002185,2]
[332295082,1721113839594,-151.0,0.0002185,2]
[332295084,1721113839603,-151.0,0.0002185,2]
[332295086,1721113839613,-151.0,0.0002185,2]
[332295088,1721113839622,-151.0,0.0002185,2]
[332295090,1721113839631,-151.0,0.0002185,2]
[332295092,1721113839641,-151.0,0.0002185,2]
[332295094,1721113839653,-189.730436,0.0002185,2]
[332295096,1721113839663,-151.0,0.0002185,2]
[332295098,1721113839673,-151.0,0.0002185,2]
[332295100,1721113839686,-194.524829,0.0002185,2]
[332295102,1721113839695,-194.524829,0.0002185,2]
[332295104,1721113839704,-151.0,0.0002185,2]
[332295106,1721113839716,-151.0,0.0002185,2]
[332295108,1721113839726,-151.0,0.0002185,2]
[332295110,1721113839736,-151.0,0.0002185,2]
[332295112,1721113839745,-151.0,0.0002185,2]
[332295114,1721113839756,-195.231241,0.0002185,2]
[332295116,1721113839765,-195.231241,0.0002185,2]
[332295118,1721113839774,-154.411635,0.0002185,2]
[332295121,1721113839783,-151.0,0.0002185,2]
[332295124,1721113839793,-151.0,0.0002185,2]
[332295126,1721113839802,-3000.0,0.0002186,2]
[332295129,1721113839814,-151.0,0.0002186,2]
[332295131,1721113839823,-151.0,0.0002186,2]
[332295133,1721113839833,-195.231241,0.0002186,2]
[332295135,1721113839843,-195.231241,0.0002186,2]
[332295137,1721113839852,-151.0,0.0002186,2]
[332295140,1721113839861,-3000.0,0.0002187,2]
[332295143,1721113839871,-243.109987,0.0002187,2]
[332295145,1721113839881,-151.0,0.0002187,2]
[332295147,1721113839890,-243.109987,0.0002187,2]
[332295149,1721113839900,-151.0,0.0002187,2]
[332295151,1721113839909,-151.0,0.0002187,2]
[332295153,1721113839918,-151.0,0.0002187,2]
[332295155,1721113839928,-197.408445,0.0002187,2]
[332295157,1721113839937,-126.47251248,0.0002187,2]
[332295232,1721113840612,-24.52748752,0.0002187,2]
[332295234,1721113840626,-151.0,0.0002187,2]
[332295237,1721113840639,-167.379747,0.0002187,2]
[332295239,1721113840653,-24.71582137,0.0002187,2]
[332295242,1721113840669,-126.28417863,0.0002187,2]
[332295244,1721113840686,-151.0,0.0002187,2]
[332295247,1721113840700,-151.0,0.0002187,2]
[332295249,1721113840715,-194.524829,0.0002187,2]
[332295252,1721113840731,-194.524829,0.0002187,2]
[332295254,1721113840745,-151.0,0.0002187,2]
[332295257,1721113840760,-151.0,0.0002187,2]
[332295259,1721113840771,-151.0,0.0002187,2]
[332295261,1721113840784,-151.0,0.0002187,2]
[332295264,1721113840797,-151.0,0.0002187,2]
[332295266,1721113840809,-151.0,0.0002187,2]
[332295268,1721113840820,-151.0,0.0002187,2]
[332295270,1721113840832,-236.186858,0.0002187,2]
[332295272,1721113840843,-151.0,0.0002187,2]
[332295274,1721113840855,-151.0,0.0002187,2]
[332295276,1721113840866,-195.231241,0.0002187,2]
[332295279,1721113840878,-195.231241,0.0002187,2]
[332295281,1721113840890,-3000.0,0.0002188,2]
[332295283,1721113840904,-151.0,0.0002188,2]
[332295285,1721113840915,-151.0,0.0002188,2]
[332295288,1721113840929,-151.0,0.0002188,2]
[332295290,1721113840941,-151.0,0.0002188,2]
[332295293,1721113840954,-151.0,0.0002188,2]
[332295295,1721113840966,-151.0,0.0002188,2]
[332295297,1721113840976,-151.0,0.0002188,2]
[332295299,1721113840986,-151.0,0.0002188,2]
[332295301,1721113840996,-107.08309,0.0002188,2]
[332295600,1721113843889,-43.91691,0.0002188,2]
[332295603,1721113843902,-194.524829,0.0002188,2]
[332295605,1721113843913,-194.524829,0.0002188,2]
[332295607,1721113843924,-151.0,0.0002188,2]
[332295609,1721113843935,-151.0,0.0002188,2]
[332295612,1721113843946,-151.0,0.0002188,2]
[332295614,1721113843958,-260.240344,0.0002188,2]
[332295616,1721113843972,-195.231241,0.0002188,2]
[332295618,1721113843983,-195.231241,0.0002188,2]
[332295621,1721113843996,-604.01294286,0.0002189,2]
[332295623,1721113844010,-2395.98705714,0.0002189,2]
[332295626,1721113844022,-243.109987,0.0002189,2]
[332295628,1721113844033,-193.485996,0.0002189,2]
[332295630,1721113844047,-89.41199511,0.0002189,2]
[332295633,1721113844061,-153.69799189,0.0002189,2]
[332295635,1721113844072,-151.0,0.0002189,2]
[332295637,1721113844083,-151.0,0.0002189,2]
[332295639,1721113844096,-151.0,0.0002189,2]
[332295642,1721113844108,-151.0,0.0002189,2]
[332295644,1721113844121,-151.0,0.0002189,2]
[332295646,1721113844132,-151.0,0.0002189,2]
[332295648,1721113844145,-151.0,0.0002189,2]
[332295650,1721113844157,-151.0,0.0002189,2]
[332295653,1721113844168,-151.0,0.0002189,2]
[332295654,1721113844179,-199.894454,0.0002189,2]
[332295655,1721113844190,-194.524829,0.0002189,2]
[332295656,1721113844203,-194.524829,0.0002189,2]
[332295657,1721113844215,-151.0,0.0002189,2]
[332295659,1721113844226,-151.0,0.0002189,2]
[332295661,1721113844235,-151.0,0.0002189,2]
[332295663,1721113844244,-195.231241,0.0002189,2]
[332295665,1721113844254,-195.231241,0.0002189,2]
[332295667,1721113844264,-150.112233,0.000219,4]
[332295669,1721113844273,-3046.413614,0.000219,2]
[332295671,1721113844283,-374.0,0.000219,2]
[332295673,1721113844292,-243.109987,0.000219,2]
[332295690,1721113844444,-243.109987,0.000219,2]
[332295693,1721113844460,-151.0,0.000219,2]
[332295695,1721113844471,-151.0,0.000219,2]
[332295697,1721113844481,-151.0,0.000219,2]
[332295699,1721113844490,-151.0,0.000219,2]
[332295701,1721113844500,-151.0,0.000219,2]
[332295703,1721113844510,-151.0,0.000219,2]
[332295705,1721113844519,-151.0,0.000219,2]
[332295707,1721113844529,-194.524829,0.000219,2]
[332295709,1721113844540,-194.524829,0.000219,2]
[332295711,1721113844550,-151.0,0.000219,2]
[332295713,1721113844560,-151.0,0.000219,2]
[332295715,1721113844570,-151.0,0.000219,2]
[332295717,1721113844579,-195.231241,0.000219,2]
[332295719,1721113844590,-195.231241,0.000219,2]
[332295721,1721113844600,-19536.5986946,0.00021906,3]
[332295724,1721113844615,-151.0,0.00021906,2]
[332295726,1721113844626,-151.0,0.00021906,2]
[332295728,1721113844637,-151.0,0.00021906,2]
[332295731,1721113844649,-195.231241,0.00021906,2]
[332295733,1721113844658,-195.231241,0.00021906,2]
[332295735,1721113844668,-47829.59673791,0.00021907,3]
[332295892,1721113846371,-296.98464516,0.00021907,3]
[332297315,1721114962161,-4953.18234816,0.00018,2]
[332297327,1721115032496,-29064.58765184,0.00018,2]
[332297328,1721115032506,-150.0,0.000189,2]
[332297329,1721115032516,-4245.19527503,0.00020733,2]
[332297330,1721115032526,-4245.19527503,0.00020907,2]
[332297331,1721115032535,-356.49268176,0.00021015,2]
[332297332,1721115032545,-270.92599341,0.00021095,2]
[332297333,1721115032554,-347.000888,0.00021096,2]
[332297334,1721115032564,-356.49268176,0.00021321,2]
[332297335,1721115032573,-4245.19527503,0.00021335,2]
[332297336,1721115032583,-4245.19527505,0.0002143,2]
[332297337,1721115032715,-227.1,0.000215,2]
[332297338,1721115032725,-356.49268176,0.0002154,2]
[332297339,1721115032735,-227.1,0.00021662,2]
[332297340,1721115032744,-1873.55919696,0.00021798,2]
[332297341,1721115032754,-483.13,0.00021805,3]
[332297342,1721115032763,-241.56,0.00021805,3]
[332297343,1721115032773,-724.72,0.00021805,3]
[332297344,1721115032782,-32766.0972133,0.00021807,3]
[332297345,1721115032792,-151.0,0.00021807,2]
[332297346,1721115032801,-198.790009,0.00021807,2]
[332297347,1721115032810,-198.790009,0.00021807,2]
[332297348,1721115032819,-32766.0972133,0.00021815,3]